[Event "Early-Titled-Tuesday-Blitz-October-10-2023"]
[Site "Chess.com"]
[Date "2023.10.10"]
[Round "1"]
[White "Hrant_ChessMood"]
[Black "bipe137"]
[Result "0-1"]
[WhiteElo "2939"]
[BlackElo "2523"]
[TimeControl "180+1"]
[EndTime "8:08:01 PDT"]
[Termination "bipe137 won by checkmate"]

1. d4 {[%clk 0:02:56.5]} 1... d5 {[%clk 0:03:00]} 2. c4 {[%clk 0:02:54.6]} 2...
e6 {[%clk 0:03:00.1]} 3. Nc3 {[%clk 0:02:53]} 3... a6 {[%clk 0:03:00.1]} 4. cxd5
{[%clk 0:02:51.5]} 4... exd5 {[%clk 0:03:01]} 5. Bf4 {[%clk 0:02:51.9]} 5... c6
{[%clk 0:03:00.2]} 6. e3 {[%clk 0:02:51.9]} 6... Bd6 {[%clk 0:03:00]} 7. Bxd6
{[%clk 0:02:51.1]} 7... Qxd6 {[%clk 0:03:00.9]} 8. Bd3 {[%clk 0:02:51.3]} 8...
Ne7 {[%clk 0:03:00.6]} 9. Qc2 {[%clk 0:02:51.5]} 9... Nd7 {[%clk 0:02:58.5]} 10.
Nf3 {[%clk 0:02:51.6]} 10... Nf6 {[%clk 0:02:53.3]} 11. O-O {[%clk 0:02:47]}
11... O-O {[%clk 0:02:53.4]} 12. Ne5 {[%clk 0:02:39.6]} 12... g6 {[%clk
0:02:51.3]} 13. Na4 {[%clk 0:02:26.5]} 13... Bf5 {[%clk 0:02:47.5]} 14. Nc5
{[%clk 0:02:19.7]} 14... Bxd3 {[%clk 0:02:43.4]} 15. Nexd3 {[%clk 0:02:16.5]}
15... Rab8 {[%clk 0:02:39.1]} 16. b4 {[%clk 0:02:07.7]} 16... Nf5 {[%clk
0:02:25.7]} 17. a4 {[%clk 0:02:04.8]} 17... Ng4 {[%clk 0:02:23.2]} 18. g3 {[%clk
0:02:03.4]} 18... h5 {[%clk 0:01:56.5]} 19. Qd1 {[%clk 0:01:59.4]} 19... Rfe8
{[%clk 0:01:43]} 20. Qf3 {[%clk 0:01:49.3]} 20... Qc7 {[%clk 0:01:25.5]} 21.
Rac1 {[%clk 0:01:43.1]} 21... Qe7 {[%clk 0:01:23.9]} 22. Rfe1 {[%clk 0:01:39.4]}
22... Nd6 {[%clk 0:01:19]} 23. Nf4 {[%clk 0:01:24.8]} 23... Nf6 {[%clk
0:01:14.5]} 24. Rb1 {[%clk 0:01:17.6]} 24... Nfe4 {[%clk 0:01:13.3]} 25. Ra1
{[%clk 0:00:59.8]} 25... Rbd8 {[%clk 0:00:56.9]} 26. Rec1 {[%clk 0:00:58.9]}
26... h4 {[%clk 0:00:53]} 27. Ra2 {[%clk 0:00:54.1]} 27... Kg7 {[%clk
0:00:52.3]} 28. Rac2 {[%clk 0:00:49.5]} 28... hxg3 {[%clk 0:00:52.1]} 29. hxg3
{[%clk 0:00:45.2]} 29... Rh8 {[%clk 0:00:51.9]} 30. Ncd3 {[%clk 0:00:34.7]}
30... Ng5 {[%clk 0:00:46.7]} 31. Qg4 {[%clk 0:00:26]} 31... f6 {[%clk
0:00:39.6]} 32. Kg2 {[%clk 0:00:18]} 32... Nf5 {[%clk 0:00:36.4]} 33. Nxg6
{[%clk 0:00:12.6]} 33... Qe4+ {[%clk 0:00:28.8]} 34. Qxe4 {[%clk 0:00:11.9]}
34... dxe4 {[%clk 0:00:28.7]} 35. Ndf4 {[%clk 0:00:11.5]} 35... Rh6 {[%clk
0:00:25.9]} 36. Rh1 {[%clk 0:00:09.9]} 36... Rxg6 {[%clk 0:00:23.7]} 37. Nxg6
{[%clk 0:00:10]} 37... Kxg6 {[%clk 0:00:24.6]} 38. b5 {[%clk 0:00:10.8]} 38...
axb5 {[%clk 0:00:24.7]} 39. axb5 {[%clk 0:00:11.7]} 39... Ne7 {[%clk 0:00:17.2]}
40. bxc6 {[%clk 0:00:08.7]} 40... bxc6 {[%clk 0:00:18.1]} 41. Rb2 {[%clk
0:00:08.8]} 41... Kf7 {[%clk 0:00:17.6]} 42. Rb7 {[%clk 0:00:08.6]} 42... Ke6
{[%clk 0:00:17.6]} 43. Ra7 {[%clk 0:00:08.5]} 43... Rb8 {[%clk 0:00:17.4]} 44.
Rc1 {[%clk 0:00:07.6]} 44... Nf3 {[%clk 0:00:16.6]} 45. Ra6 {[%clk 0:00:06.6]}
45... Kd6 {[%clk 0:00:16.4]} 46. Ra5 {[%clk 0:00:06.6]} 46... Rh8 {[%clk
0:00:16.4]} 47. Rh1 {[%clk 0:00:05.7]} 47... Rb8 {[%clk 0:00:16.5]} 48. Rah5
{[%clk 0:00:06.3]} 48... Nd5 {[%clk 0:00:16]} 49. Rc1 {[%clk 0:00:06.2]} 49...
Rb2 {[%clk 0:00:16]} 50. Rhh1 {[%clk 0:00:05.9]} 50... Nxe3+ {[%clk 0:00:16.3]}
51. Kh3 {[%clk 0:00:04.7]} 51... Nd5 {[%clk 0:00:16.5]} 52. Rhf1 {[%clk
0:00:04.1]} 52... f5 {[%clk 0:00:16.5]} 53. g4 {[%clk 0:00:03.6]} 53... f4
{[%clk 0:00:16.5]} 54. Ra1 {[%clk 0:00:01.6]} 54... Rb8 {[%clk 0:00:16.7]} 55.
g5 {[%clk 0:00:01.5]} 55... Rh8+ {[%clk 0:00:16.9]} 56. Kg4 {[%clk 0:00:02.4]}
56... Ke6 {[%clk 0:00:17]} 57. Ra6 {[%clk 0:00:01.8]} 57... Rh4# {[%clk
0:00:17]} 0-1

[Event "Early-Titled-Tuesday-Blitz-October-10-2023"]
[Site "Chess.com"]
[Date "2023.10.10"]
[Round "1"]
[White "Ermito2020"]
[Black "Efremov_Vlad"]
[Result "1-0"]
[WhiteElo "2608"]
[BlackElo "2294"]
[TimeControl "180+1"]
[EndTime "8:08:04 PDT"]
[Termination "Ermito2020 won on time"]

1. e4 {[%clk 0:02:59.6]} 1... c5 {[%clk 0:03:00]} 2. Nf3 {[%clk 0:02:56.7]} 2...
d6 {[%clk 0:03:00.3]} 3. d4 {[%clk 0:02:56.4]} 3... cxd4 {[%clk 0:03:01.2]} 4.
Nxd4 {[%clk 0:02:57.3]} 4... Nf6 {[%clk 0:03:01.9]} 5. Nc3 {[%clk 0:02:57.4]}
5... a6 {[%clk 0:03:02.5]} 6. Bg5 {[%clk 0:02:56.3]} 6... e6 {[%clk 0:03:01.1]}
7. Qf3 {[%clk 0:02:56.6]} 7... Nbd7 {[%clk 0:02:59.4]} 8. O-O-O {[%clk
0:02:55.6]} 8... Qc7 {[%clk 0:02:48.8]} 9. Qg3 {[%clk 0:02:55.2]} 9... h6 {[%clk
0:02:44.5]} 10. Bxf6 {[%clk 0:02:47.3]} 10... Nxf6 {[%clk 0:02:45.4]} 11. f4
{[%clk 0:02:47.9]} 11... g5 {[%clk 0:02:16.5]} 12. fxg5 {[%clk 0:02:23.2]} 12...
hxg5 {[%clk 0:02:17.4]} 13. Kb1 {[%clk 0:02:18.4]} 13... Be7 {[%clk 0:02:09.4]}
14. Bd3 {[%clk 0:02:00.3]} 14... Nd7 {[%clk 0:02:02.4]} 15. h4 {[%clk
0:01:45.1]} 15... gxh4 {[%clk 0:01:53.1]} 16. Nxe6 {[%clk 0:01:40.3]} 16... fxe6
{[%clk 0:01:43.8]} 17. Qg6+ {[%clk 0:01:40.4]} 17... Kd8 {[%clk 0:01:43.7]} 18.
Qxe6 {[%clk 0:01:38.9]} 18... Ne5 {[%clk 0:01:32]} 19. Qb3 {[%clk 0:01:38.3]}
19... b5 {[%clk 0:01:23.8]} 20. Nd5 {[%clk 0:01:28.4]} 20... Qc5 {[%clk
0:01:23.9]} 21. Be2 {[%clk 0:01:20]} 21... Be6 {[%clk 0:01:21.2]} 22. g3 {[%clk
0:01:09.3]} 22... Kd7 {[%clk 0:01:14.9]} 23. gxh4 {[%clk 0:01:06]} 23... Rxh4
{[%clk 0:01:12]} 24. Rxh4 {[%clk 0:00:58.6]} 24... Bxh4 {[%clk 0:01:12.9]} 25.
a3 {[%clk 0:00:59.4]} 25... Rf8 {[%clk 0:01:09.5]} 26. Rh1 {[%clk 0:00:56.5]}
26... Qf2 {[%clk 0:01:03.1]} 27. Bxb5+ {[%clk 0:00:46.4]} 27... axb5 {[%clk
0:00:46.2]} 28. Qxb5+ {[%clk 0:00:47.3]} 28... Kc8 {[%clk 0:00:39.7]} 29. Qa6+
{[%clk 0:00:42.5]} 29... Kd7 {[%clk 0:00:36.8]} 30. Qb7+ {[%clk 0:00:40.7]}
30... Ke8 {[%clk 0:00:33]} 31. Qb8+ {[%clk 0:00:19]} 31... Kf7 {[%clk
0:00:26.8]} 32. Qxd6 {[%clk 0:00:19.6]} 32... Bxd5 {[%clk 0:00:18.9]} 33. Qxd5+
{[%clk 0:00:20.5]} 33... Kf6 {[%clk 0:00:18.6]} 34. Qd6+ {[%clk 0:00:19.6]}
34... Kg7 {[%clk 0:00:13.9]} 35. Qxe5+ {[%clk 0:00:20.5]} 35... Bf6 {[%clk
0:00:14.6]} 36. Qh5 {[%clk 0:00:18.8]} 36... Bd4 {[%clk 0:00:04.2]} 37. e5
{[%clk 0:00:16.3]} 37... Qf5 {[%clk 0:00:02.8]} 38. Qh6+ {[%clk 0:00:14]} 38...
Kf7 {[%clk 0:00:03.4]} 39. e6+ {[%clk 0:00:07.9]} 39... Qxe6 {[%clk 0:00:02.7]}
40. Rf1+ {[%clk 0:00:07.8]} 40... Bf6 {[%clk 0:00:01.5]} 41. Qh7+ {[%clk
0:00:08.2]} 41... Ke8 {[%clk 0:00:02]} 42. Rd1 {[%clk 0:00:06.6]} 42... Be7
{[%clk 0:00:01.7]} 43. Qh5+ {[%clk 0:00:05.4]} 43... Rf7 {[%clk 0:00:02.5]} 44.
Qb5+ {[%clk 0:00:04.8]} 44... Kf8 {[%clk 0:00:02.7]} 45. Qh5 {[%clk 0:00:05.4]}
45... Qf6 {[%clk 0:00:02]} 46. Qb5 {[%clk 0:00:04.1]} 1-0

[Event "Early-Titled-Tuesday-Blitz-October-10-2023"]
[Site "Chess.com"]
[Date "2023.10.10"]
[Round "1"]
[White "sergoy"]
[Black "angryspacevoid"]
[Result "1-0"]
[WhiteElo "3018"]
[BlackElo "2514"]
[TimeControl "180+1"]
[EndTime "8:08:07 PDT"]
[Termination "sergoy won by checkmate"]

1. d4 {[%clk 0:02:59.9]} 1... d5 {[%clk 0:02:56.3]} 2. c4 {[%clk 0:03:00.1]}
2... e6 {[%clk 0:02:56]} 3. Nf3 {[%clk 0:03:00.8]} 3... Nf6 {[%clk 0:02:55.4]}
4. Nc3 {[%clk 0:03:01.5]} 4... dxc4 {[%clk 0:02:53.6]} 5. e4 {[%clk 0:03:01.4]}
5... Bb4 {[%clk 0:02:53.7]} 6. Bxc4 {[%clk 0:03:01.3]} 6... c5 {[%clk
0:02:43.7]} 7. O-O {[%clk 0:02:53.1]} 7... cxd4 {[%clk 0:02:42.7]} 8. Nxd4
{[%clk 0:02:53.4]} 8... Bxc3 {[%clk 0:02:40.8]} 9. bxc3 {[%clk 0:02:52.7]} 9...
O-O {[%clk 0:02:34.2]} 10. e5 {[%clk 0:02:50.9]} 10... Nd5 {[%clk 0:02:25.7]}
11. Ba3 {[%clk 0:02:46.5]} 11... Re8 {[%clk 0:02:24.1]} 12. Nb5 {[%clk
0:02:45.7]} 12... Nc6 {[%clk 0:02:18.6]} 13. Nd6 {[%clk 0:02:43]} 13... Nxe5
{[%clk 0:02:07.4]} 14. Bxd5 {[%clk 0:02:42.5]} 14... exd5 {[%clk 0:02:07.8]} 15.
Nxe8 {[%clk 0:02:43.1]} 15... Qxe8 {[%clk 0:01:58.5]} 16. Qxd5 {[%clk
0:02:42.7]} 16... Nc6 {[%clk 0:01:57.9]} 17. Rfe1 {[%clk 0:02:37.9]} 17... Be6
{[%clk 0:01:56.7]} 18. Qg5 {[%clk 0:02:38.6]} 18... Rd8 {[%clk 0:01:53.4]} 19.
Rad1 {[%clk 0:02:31.8]} 19... Rxd1 {[%clk 0:01:47.8]} 20. Rxd1 {[%clk
0:02:32.7]} 20... Bxa2 {[%clk 0:01:46.1]} 21. Bc5 {[%clk 0:02:26.4]} 21... Bb3
{[%clk 0:01:44.1]} 22. Rc1 {[%clk 0:02:20.9]} 22... a5 {[%clk 0:01:41.3]} 23.
Bd4 {[%clk 0:02:12.8]} 23... Qf8 {[%clk 0:01:10.5]} 24. Bc5 {[%clk 0:01:29.8]}
24... Qe8 {[%clk 0:01:09.4]} 25. h4 {[%clk 0:01:25.3]} 25... h6 {[%clk
0:00:55.5]} 26. Qe3 {[%clk 0:01:14]} 26... Qxe3 {[%clk 0:00:46.9]} 27. Bxe3
{[%clk 0:01:11.7]} 27... b5 {[%clk 0:00:24.3]} 28. Bc5 {[%clk 0:01:11.5]} 28...
a4 {[%clk 0:00:23.4]} 29. Re1 {[%clk 0:01:11.3]} 29... Na5 {[%clk 0:00:21.7]}
30. Re8+ {[%clk 0:01:10.7]} 30... Kh7 {[%clk 0:00:21.4]} 31. Rb8 {[%clk
0:00:57.9]} 31... Bc4 {[%clk 0:00:21]} 32. Ra8 {[%clk 0:00:54.9]} 32... Nc6
{[%clk 0:00:16.6]} 33. f3 {[%clk 0:00:53.2]} 33... Ne5 {[%clk 0:00:16.7]} 34.
Ra7 {[%clk 0:00:46.5]} 34... Nd3 {[%clk 0:00:16.2]} 35. Bd4 {[%clk 0:00:46.5]}
35... Kg6 {[%clk 0:00:15.2]} 36. g4 {[%clk 0:00:35]} 36... h5 {[%clk 0:00:14.8]}
37. Ra6+ {[%clk 0:00:33.3]} 37... f6 {[%clk 0:00:14.5]} 38. Ra7 {[%clk
0:00:26.3]} 38... hxg4 {[%clk 0:00:14.2]} 39. fxg4 {[%clk 0:00:27.2]} 39... Nf4
{[%clk 0:00:14.4]} 40. Kf2 {[%clk 0:00:25.3]} 40... Ne6 {[%clk 0:00:11.4]} 41.
Be3 {[%clk 0:00:23.3]} 41... f5 {[%clk 0:00:10.8]} 42. h5+ {[%clk 0:00:22.5]}
42... Kf6 {[%clk 0:00:10.9]} 43. gxf5 {[%clk 0:00:19.4]} 43... Kxf5 {[%clk
0:00:11.8]} 44. Kg3 {[%clk 0:00:16.8]} 44... Ke4 {[%clk 0:00:11.3]} 45. Bc1
{[%clk 0:00:08.9]} 45... Kd3 {[%clk 0:00:11.4]} 46. Ba3 {[%clk 0:00:08.6]} 46...
Kxc3 {[%clk 0:00:11.2]} 47. Rb7 {[%clk 0:00:09.2]} 47... Nd4 {[%clk 0:00:08.9]}
48. Kf4 {[%clk 0:00:06.9]} 48... Bd5 {[%clk 0:00:08.3]} 49. Rb8 {[%clk
0:00:06.4]} 49... Nc2 {[%clk 0:00:06.7]} 50. Bd6 {[%clk 0:00:05.9]} 50... b4
{[%clk 0:00:07]} 51. Be5+ {[%clk 0:00:06.4]} 51... Kd3 {[%clk 0:00:06.7]} 52.
Bxg7 {[%clk 0:00:06.8]} 52... b3 {[%clk 0:00:07]} 53. h6 {[%clk 0:00:07.3]}
53... Be4 {[%clk 0:00:06.6]} 54. Rd8+ {[%clk 0:00:07.5]} 54... Kc4 {[%clk
0:00:06.7]} 55. Kxe4 {[%clk 0:00:08.1]} 55... a3 {[%clk 0:00:06.7]} 56. Rc8+
{[%clk 0:00:08.2]} 56... Kb4 {[%clk 0:00:06]} 57. h7 {[%clk 0:00:08.9]} 57... a2
{[%clk 0:00:05.6]} 58. h8=Q {[%clk 0:00:08.9]} 58... Ka3 {[%clk 0:00:05.5]} 59.
Qf8+ {[%clk 0:00:08.8]} 59... Nb4 {[%clk 0:00:04.2]} 60. Ra8# {[%clk 0:00:09.1]}
1-0

[Event "Early-Titled-Tuesday-Blitz-October-10-2023"]
[Site "Chess.com"]
[Date "2023.10.10"]
[Round "1"]
[White "SALVA-DALI"]
[Black "maximnovik"]
[Result "1-0"]
[WhiteElo "2752"]
[BlackElo "2430"]
[TimeControl "180+1"]
[EndTime "8:08:08 PDT"]
[Termination "SALVA-DALI won by checkmate"]

1. c4 {[%clk 0:02:57.7]} 1... Nf6 {[%clk 0:02:58.8]} 2. Nf3 {[%clk 0:02:53.7]}
2... g6 {[%clk 0:02:58.3]} 3. g3 {[%clk 0:02:51.3]} 3... Bg7 {[%clk 0:02:58.2]}
4. Bg2 {[%clk 0:02:52]} 4... c5 {[%clk 0:02:58.6]} 5. O-O {[%clk 0:02:52.7]}
5... d5 {[%clk 0:02:58.9]} 6. Nc3 {[%clk 0:02:53.3]} 6... d4 {[%clk 0:02:52.7]}
7. Na4 {[%clk 0:02:53.5]} 7... Nfd7 {[%clk 0:02:52.6]} 8. Rb1 {[%clk 0:02:46.6]}
8... Nc6 {[%clk 0:02:49.1]} 9. a3 {[%clk 0:02:45.8]} 9... Qc7 {[%clk 0:02:36]}
10. d3 {[%clk 0:02:37.4]} 10... b6 {[%clk 0:02:35.4]} 11. b4 {[%clk 0:02:36.4]}
11... Bb7 {[%clk 0:02:31.6]} 12. e4 {[%clk 0:02:36.2]} 12... O-O {[%clk
0:02:29.8]} 13. h3 {[%clk 0:02:34]} 13... Rab8 {[%clk 0:02:29.5]} 14. Bd2 {[%clk
0:02:33.6]} 14... Ba8 {[%clk 0:02:28.5]} 15. Qe2 {[%clk 0:02:32.6]} 15... e5
{[%clk 0:02:22]} 16. Nh2 {[%clk 0:02:32.4]} 16... Nd8 {[%clk 0:02:20.7]} 17. f4
{[%clk 0:02:31]} 17... exf4 {[%clk 0:02:20.3]} 18. gxf4 {[%clk 0:02:29.4]} 18...
Bc6 {[%clk 0:02:10.2]} 19. b5 {[%clk 0:02:27.8]} 19... Bb7 {[%clk 0:02:10.1]}
20. f5 {[%clk 0:02:27.2]} 20... f6 {[%clk 0:02:04.8]} 21. Ng4 {[%clk 0:02:26.6]}
21... Nf7 {[%clk 0:02:01.1]} 22. Nb2 {[%clk 0:02:22.6]} 22... g5 {[%clk
0:01:55]} 23. Nd1 {[%clk 0:02:21.4]} 23... Nfe5 {[%clk 0:01:51.7]} 24. Ndf2
{[%clk 0:02:21.1]} 24... Rf7 {[%clk 0:01:46.5]} 25. Nxe5 {[%clk 0:02:21.2]}
25... Nxe5 {[%clk 0:01:46.4]} 26. Ng4 {[%clk 0:02:21.9]} 26... Bf8 {[%clk
0:01:43.6]} 27. Be1 {[%clk 0:02:10.3]} 27... Kg7 {[%clk 0:01:40.6]} 28. Nxe5
{[%clk 0:02:05]} 28... Qxe5 {[%clk 0:01:40.1]} 29. Rf3 {[%clk 0:02:05.7]} 29...
Bd6 {[%clk 0:01:38.9]} 30. Bg3 {[%clk 0:02:05.6]} 30... Qe7 {[%clk 0:01:39.1]}
31. Bxd6 {[%clk 0:02:03.9]} 31... Qxd6 {[%clk 0:01:39.3]} 32. Rbf1 {[%clk
0:01:57.7]} 32... Re8 {[%clk 0:01:39]} 33. Qf2 {[%clk 0:01:57.3]} 33... h5
{[%clk 0:01:37.9]} 34. Rg3 {[%clk 0:01:57]} 34... h4 {[%clk 0:01:35]} 35. Rg4
{[%clk 0:01:55.8]} 35... Kf8 {[%clk 0:01:34.6]} 36. Bf3 {[%clk 0:01:53.9]} 36...
a6 {[%clk 0:01:31.6]} 37. Rb1 {[%clk 0:01:48.2]} 37... axb5 {[%clk 0:01:30.6]}
38. Rxb5 {[%clk 0:01:49.1]} 38... Ra8 {[%clk 0:01:27.6]} 39. Qb2 {[%clk
0:01:47.8]} 39... Ra6 {[%clk 0:01:26.5]} 40. a4 {[%clk 0:01:39.5]} 40... Bc8
{[%clk 0:01:14.7]} 41. a5 {[%clk 0:01:36.2]} 41... bxa5 {[%clk 0:01:14.3]} 42.
Rb8 {[%clk 0:01:35.2]} 42... Rc7 {[%clk 0:01:09.3]} 43. e5 {[%clk 0:01:35.5]}
43... Qxe5 {[%clk 0:01:08.3]} 44. Re4 {[%clk 0:01:14]} 44... Qg3+ {[%clk
0:01:07]} 45. Bg2 {[%clk 0:01:14.7]} 45... Kg7 {[%clk 0:00:46.2]} 46. Rxc8
{[%clk 0:01:13.3]} 46... Rxc8 {[%clk 0:00:45.6]} 47. Qb7+ {[%clk 0:01:13.6]}
47... Rc7 {[%clk 0:00:44]} 48. Qxa6 {[%clk 0:01:04.2]} 48... Qxd3 {[%clk
0:00:37.7]} 49. Qd6 {[%clk 0:01:04.7]} 49... Rf7 {[%clk 0:00:36.2]} 50. Re7
{[%clk 0:01:04.2]} 50... Qxc4 {[%clk 0:00:36.4]} 51. Rxf7+ {[%clk 0:00:54.9]}
51... Qxf7 {[%clk 0:00:36.1]} 52. Bd5 {[%clk 0:00:55.1]} 52... Qf8 {[%clk
0:00:35.1]} 53. Qc7+ {[%clk 0:00:45.6]} 53... Kh6 {[%clk 0:00:35.1]} 54. Qxa5
{[%clk 0:00:38.1]} 54... Qd6 {[%clk 0:00:35]} 55. Qa8 {[%clk 0:00:33.1]} 55...
g4 {[%clk 0:00:30.3]} 56. Qh8+ {[%clk 0:00:28.8]} 56... Kg5 {[%clk 0:00:30]} 57.
Qg7+ {[%clk 0:00:29.6]} 57... Kf4 {[%clk 0:00:27.9]} 58. Qxg4+ {[%clk
0:00:28.9]} 58... Ke3 {[%clk 0:00:26.1]} 59. Qf3+ {[%clk 0:00:26.9]} 59... Kd2
{[%clk 0:00:26]} 60. Qf2+ {[%clk 0:00:26.8]} 60... Kc3 {[%clk 0:00:26.2]} 61.
Qa2 {[%clk 0:00:23.1]} 61... d3 {[%clk 0:00:24.8]} 62. Qa1+ {[%clk 0:00:20.5]}
62... Kc2 {[%clk 0:00:21.7]} 63. Qa2+ {[%clk 0:00:20.9]} 63... Kc3 {[%clk
0:00:21.9]} 64. Qa1+ {[%clk 0:00:21.5]} 64... Kd2 {[%clk 0:00:22.1]} 65. Qb2+
{[%clk 0:00:21.7]} 65... Kd1 {[%clk 0:00:19.5]} 66. Bf3+ {[%clk 0:00:21.8]}
66... Ke1 {[%clk 0:00:19]} 67. Qf2# {[%clk 0:00:22.7]} 1-0

[Event "Early-Titled-Tuesday-Blitz-October-10-2023"]
[Site "Chess.com"]
[Date "2023.10.10"]
[Round "1"]
[White "elprimo2012mortis"]
[Black "nihalsarin"]
[Result "1-0"]
[WhiteElo "2572"]
[BlackElo "3127"]
[TimeControl "180+1"]
[EndTime "8:08:12 PDT"]
[Termination "elprimo2012mortis won by resignation"]

1. e4 {[%clk 0:03:00.9]} 1... a6 {[%clk 0:02:57.2]} 2. d4 {[%clk 0:02:59.9]}
2... c6 {[%clk 0:02:56.1]} 3. Nc3 {[%clk 0:02:54.3]} 3... d5 {[%clk 0:02:56.3]}
4. Nf3 {[%clk 0:02:51]} 4... Bg4 {[%clk 0:02:54.1]} 5. Be2 {[%clk 0:02:44.1]}
5... e6 {[%clk 0:02:51.5]} 6. O-O {[%clk 0:02:44]} 6... Nd7 {[%clk 0:02:42.5]}
7. Bf4 {[%clk 0:02:40.6]} 7... Ngf6 {[%clk 0:02:40.8]} 8. e5 {[%clk 0:02:39.8]}
8... Ng8 {[%clk 0:02:35.1]} 9. Nd2 {[%clk 0:02:18.3]} 9... Bxe2 {[%clk
0:02:31.2]} 10. Nxe2 {[%clk 0:02:18.1]} 10... c5 {[%clk 0:02:32.1]} 11. c3
{[%clk 0:02:17.4]} 11... Ne7 {[%clk 0:02:32.9]} 12. Nf3 {[%clk 0:02:15.9]} 12...
Nc6 {[%clk 0:02:33.4]} 13. Qd2 {[%clk 0:02:14.5]} 13... Be7 {[%clk 0:02:33.8]}
14. g3 {[%clk 0:02:13.3]} 14... O-O {[%clk 0:02:34]} 15. h4 {[%clk 0:02:13.8]}
15... Rc8 {[%clk 0:02:34.6]} 16. h5 {[%clk 0:02:13.8]} 16... cxd4 {[%clk
0:02:30.7]} 17. cxd4 {[%clk 0:02:14.1]} 17... Qa5 {[%clk 0:02:30.1]} 18. Qe3
{[%clk 0:02:11.4]} 18... Nb4 {[%clk 0:02:27.3]} 19. Rac1 {[%clk 0:02:03.9]}
19... Qxa2 {[%clk 0:02:20.8]} 20. h6 {[%clk 0:01:59.7]} 20... Qxb2 {[%clk
0:01:37.9]} 21. hxg7 {[%clk 0:01:54.8]} 21... Rfe8 {[%clk 0:01:37.5]} 22. Bg5
{[%clk 0:01:45.7]} 22... Nc6 {[%clk 0:01:30.9]} 23. Bxe7 {[%clk 0:01:42.3]}
23... Nxe7 {[%clk 0:01:31.8]} 24. Rb1 {[%clk 0:01:34.5]} 24... Qc2 {[%clk
0:01:24.6]} 25. Rxb7 {[%clk 0:01:32]} 25... Nf5 {[%clk 0:01:24.3]} 26. Qf4
{[%clk 0:01:20.6]} 26... Qxe2 {[%clk 0:01:18.5]} 27. Rxd7 {[%clk 0:01:20.1]}
27... h6 {[%clk 0:01:16.3]} 28. g4 {[%clk 0:01:16.9]} 28... Rc3 {[%clk
0:01:15.1]} 29. gxf5 {[%clk 0:01:10.9]} 29... Qxf3 {[%clk 0:01:15.1]} 30. Qxf3
{[%clk 0:01:10.9]} 30... Rxf3 {[%clk 0:01:16]} 31. f6 {[%clk 0:01:11.4]} 31...
Rf4 {[%clk 0:01:14.2]} 32. Rc1 {[%clk 0:01:10.7]} 32... Rxd4 {[%clk 0:01:09.8]}
33. Re7 {[%clk 0:01:04.8]} 33... Ra8 {[%clk 0:01:04.7]} 34. Rcc7 {[%clk
0:00:57.5]} 34... Re4 {[%clk 0:00:58.6]} 35. f4 {[%clk 0:00:54.9]} 35... Rxf4
{[%clk 0:00:58.8]} 36. Rxf7 {[%clk 0:00:51.8]} 36... Rf5 {[%clk 0:00:46.7]} 37.
Ra7 {[%clk 0:00:47.6]} 37... Rb8 {[%clk 0:00:46.5]} 38. Rfb7 {[%clk 0:00:47.7]}
38... Rc8 {[%clk 0:00:45.2]} 39. Rc7 {[%clk 0:00:47.6]} 39... Rb8 {[%clk
0:00:45.8]} 40. Rab7 {[%clk 0:00:47.5]} 40... Ra8 {[%clk 0:00:46.4]} 41. Ra7
{[%clk 0:00:38.3]} 41... Rb8 {[%clk 0:00:46.2]} 42. Rab7 {[%clk 0:00:35.8]}
42... Ra8 {[%clk 0:00:46.3]} 43. Rb6 {[%clk 0:00:30]} 43... Rxe5 {[%clk
0:00:41.8]} 44. Rbc6 {[%clk 0:00:29.4]} 44... Rg5+ {[%clk 0:00:34.7]} 45. Kh2
{[%clk 0:00:29.6]} 45... Rh5+ {[%clk 0:00:34.5]} 46. Kg3 {[%clk 0:00:29.2]}
46... Rg5+ {[%clk 0:00:34.4]} 47. Kh4 {[%clk 0:00:29.7]} 47... Kh7 {[%clk
0:00:24.3]} 48. Rc8 {[%clk 0:00:21.9]} 48... Rxc8 {[%clk 0:00:09.4]} 49. Rxc8
{[%clk 0:00:22.8]} 49... Rxg7 {[%clk 0:00:09.7]} 50. fxg7 {[%clk 0:00:23.2]}
50... Kxg7 {[%clk 0:00:10.3]} 51. Rc6 {[%clk 0:00:23.9]} 51... Kf6 {[%clk
0:00:08.6]} 52. Kg4 {[%clk 0:00:24.3]} 52... Ke5 {[%clk 0:00:07]} 53. Kf3 {[%clk
0:00:23.8]} 53... a5 {[%clk 0:00:06]} 54. Ra6 {[%clk 0:00:23.9]} 54... Kf5
{[%clk 0:00:05.5]} 55. Rxa5 {[%clk 0:00:24.1]} 55... h5 {[%clk 0:00:05.6]} 56.
Ra8 {[%clk 0:00:24.1]} 56... e5 {[%clk 0:00:05.7]} 57. Rf8+ {[%clk 0:00:23.4]}
57... Ke6 {[%clk 0:00:05.5]} 58. Rh8 {[%clk 0:00:23.6]} 1-0